fUSD/lending_fUSD_20241006
["ID","MTS","AMOUNT","RATE_DAILY","PERIOD"]
[339954081,1728208837769,150.0,9.797e-05,2]
[339954082,1728208837790,150.0,9.797e-05,2]
[339954083,1728208837812,6.3,9.797e-05,2]
[339954084,1728208990486,143.7,9.791e-05,2]
[339954085,1728208990508,106.3,9.791e-05,2]
[339954086,1728209018330,228.84,9.795e-05,2]
[339954087,1728209116542,150.0,9.802e-05,2]
[339954088,1728209116565,50.0,9.802e-05,2]
[339954089,1728209275768,100.0,9.803e-05,2]
[339954090,1728209275790,150.0,9.803e-05,2]
[339954091,1728209335108,150.0,8.219e-05,2]
[339954092,1728209335133,150.0,8.219e-05,2]
[339954093,1728209335156,275.70702158,8.219e-05,2]
[339954094,1728209335177,150.0,8.219e-05,2]
[339954095,1728209335200,80.67297842,8.219e-05,2]
[339954096,1728209362552,190.49702158,9.802e-05,2]
[339954097,1728209362576,80.71297842,9.802e-05,2]
[339954111,1728209432081,-235.58095044,0.00010465,2]
[339954112,1728209432092,-264.9791082,0.00010465,2]
[339954113,1728209432103,-541.4008918,0.00010465,2]
[339954114,1728209432114,-2544.32,0.00010618,2]
[339954115,1728209432124,-2544.32,0.00010621,2]
[339954116,1728209432136,-2544.32,0.00010623,2]
[339954117,1728209432147,-26906.3701959,0.00010624,2]
[339954118,1728209432157,-2544.32,0.00010626,2]
[339954119,1728209432168,-2544.32,0.00010629,2]
[339954120,1728209432178,-2544.32,0.00010632,2]
[339954121,1728209432189,-2544.32,0.00010635,2]
[339954122,1728209432200,-1404.55,0.00010635,2]
[339954123,1728209432210,-150.0,0.00010636,2]
[339954124,1728209432219,-2544.32,0.00010637,2]
[339954125,1728209432230,-499.99,0.00010637,2]
[339954126,1728209432241,-2544.32,0.0001064,2]
[339954127,1728209432250,-2544.32,0.00010643,2]
[339954128,1728209432260,-2544.32,0.00010646,2]
[339954129,1728209432270,-2544.32,0.00010649,2]
[339954130,1728209432279,-2544.32,0.00010651,2]
[339954131,1728209432290,-2544.32,0.00010654,2]
[339954132,1728209432300,-2544.32,0.00010657,2]
[339954133,1728209432309,-195.69,0.00010658,2]
[339954134,1728209432318,-2544.32,0.0001066,2]
[339954135,1728209432327,-2544.32,0.00010663,2]
[339954136,1728209432338,-2544.32,0.00010665,2]
[339954137,1728209432347,-2544.32,0.00010668,2]
[339954138,1728209432358,-2544.32,0.00010671,2]
[339954140,1728209432367,-307.0,0.000109,2]
[339954142,1728209432376,-204.0437824,0.000109,2]
[339954144,1728209432387,-169.38536068,0.000109,2]
[339954146,1728209432397,-1748.87161353,0.000109,2]
[339954148,1728209432408,-168.43382,0.00010949,2]
[339954149,1728209432418,-200.0,0.00010959,2]
[339954151,1728209432428,-162.93,0.00010959,2]
[339954153,1728209432438,-162.32,0.00010959,2]
[339954155,1728209432447,-250.0,0.00010959,2]
[339954157,1728209432457,-1500.0,0.00010959,2]
[339954158,1728209432466,-1683.59,0.00010959,2]
[339954161,1728209432476,-500.0,0.0001096,2]
[339954162,1728209432485,-161.663,0.0001097,2]
[339954164,1728209432494,-168.40668733,0.0001097,2]
[339954166,1728209432503,-500.0,0.00010973,2]
[339954168,1728209432512,-500.0,0.00010973,2]
[339954169,1728209432521,-433.7962822,0.00010995,2]
[339954171,1728209432530,-4106.3550784,0.00010995,2]
[339954173,1728209432539,-150.0,0.00010997,2]
[339954175,1728209432548,-231.63587213,0.00010999,2]
[339954177,1728209432558,-1199.82932017,0.00010999,3]
[339954178,1728209432567,-1199.82932017,0.00010999,3]
[339954180,1728209432576,-150.0,0.00010999,2]
[339954182,1728209432586,-121135.05667169,0.00011,2]
[339954184,1728209432595,-241484.08134989,0.00011,2]
[339954186,1728209432607,-544.57707993,0.00011,2]
[339954188,1728209432618,-418.54007673,0.00011,2]
[339954191,1728209432629,-3209.95,0.00011,2]
[339954203,1728209432751,-325699.78584194,0.00011,2]
[339954205,1728209432760,-150.163,0.00011,2]
[339954207,1728209432769,-300.0,0.00011,2]
[339954209,1728209432778,-614247.06213886,0.00011,2]
[339954211,1728209432789,-61479.98488701,0.00011,2]
[339954509,1728209438202,-231.63587213,0.00010999,2]
[339954510,1728209438211,-4389.63537848,0.00011,2]
[339954511,1728209438306,-514736.86128977,0.00011,2]
[339954512,1728209438332,-693.51935749,0.00011,2]
[339954513,1728209438735,-12294.39456971,0.00011,2]
[339954514,1728209438747,-31844.98063836,0.00011,2]
[339954515,1728209438758,-427.20419193,0.00011,2]
[339954516,1728209438779,-3378.11486579,0.00011,2]
[339954517,1728209438792,-2408.27273441,0.00011,2]
[339954521,1728209440276,-1283.81958987,0.00011,2]
[339954522,1728209440392,-310.84,0.00011,2]
[339954763,1728209443260,-13095.07788184,0.00011,2]
[339954765,1728209443271,-67552.02367707,0.00011,2]
[339955010,1728209446228,-61789.33098352,0.00011,2]
[339955434,1728209515548,500.0,8.22e-05,2]
[339955435,1728209751120,250.0,0.00010174,2]
[339955436,1728209833896,172.18,0.0001019,2]
[339955437,1728209857692,250.0,0.00010167,2]
[339955438,1728209860834,150.0,0.00010167,2]
[339955439,1728209860857,150.0,0.00010167,2]
[339955440,1728209860879,150.0,0.00010167,2]
[339955441,1728209860901,15.9,0.00010167,2]
[339955442,1728209892591,150.0,8.254e-05,2]
[339955443,1728209892612,150.0,8.254e-05,2]
[339955444,1728209892634,150.0,8.254e-05,2]
[339955445,1728209892655,150.0,8.254e-05,2]
[339955446,1728209892675,150.0,8.254e-05,2]
[339955447,1728209892696,41.55,8.254e-05,2]
[339955448,1728209941813,236.66,0.00010149,2]
[339955449,1728209941834,150.0,0.00010149,2]
[339955450,1728209941855,150.0,0.00010149,2]
[339955451,1728209941876,150.0,0.00010149,2]
[339955452,1728209941897,150.0,0.00010149,2]
[339955453,1728209941916,157.68,0.00010149,2]
[339955454,1728209941938,962.59,0.00010149,2]
[339955455,1728209942233,1956.93,0.00010151,2]
[339955456,1728209942671,1956.93,0.00010154,2]
[339955457,1728209942939,1956.93,0.00010157,2]
[339955458,1728209943122,1956.93,0.00010159,2]
[339955459,1728209943330,1956.93,0.00010162,2]
[339955460,1728209943561,1956.93,0.00010165,2]
[339955461,1728209943755,1956.93,0.00010167,2]
[339955462,1728209943965,1956.93,0.0001017,2]
[339955463,1728209944167,1956.93,0.00010173,2]
[339955464,1728209944379,1956.93,0.00010175,2]
[339955465,1728209944584,1956.93,0.00010178,2]
[339955466,1728209944797,1956.93,0.00010181,2]
[339955467,1728209944998,1956.93,0.00010183,2]
[339955468,1728209945279,1956.93,0.00010186,2]
[339955469,1728209945484,1956.93,0.00010189,2]
[339955470,1728209945711,1956.93,0.00010191,2]
[339955471,1728209945914,1956.93,0.00010194,2]
[339955472,1728209946115,1956.93,0.00010197,2]
[339955473,1728209946307,1956.93,0.00010199,2]
[339955474,1728210037654,469.42,0.00010146,2]
[339955475,1728210060310,167.93,0.00010168,2]
[339955476,1728210195982,150.0,0.00010165,2]
[339955477,1728210196002,150.0,0.00010165,2]
[339955478,1728210196023,119.93,0.00010165,2]
[339955479,1728210314407,30.07,0.00010165,2]
[339955480,1728210314428,150.0,0.00010165,2]
[339955481,1728210314449,69.93,0.00010165,2]
[339955482,1728210330403,150.0,0.00010165,2]
[339955483,1728210354573,36.75,6.94e-05,2]
[339955484,1728210354593,150.0,6.94e-05,2]
[339955485,1728210354615,150.0,6.94e-05,2]
[339955486,1728210354635,250.0,6.94e-05,2]
[339955487,1728210354655,260.36,6.94e-05,2]
[339955488,1728210354677,150.0,6.94e-05,2]
[339955489,1728210354701,3313.89,6.94e-05,2]
[339955490,1728210357068,250.0,0.00010165,2]
[339955491,1728210367198,967.84257842,0.0001,2]
[339955492,1728210371520,150.0,0.00010165,2]
[339955493,1728210371542,150.0,0.00010165,2]
[339955494,1728210371563,95.15,0.00010165,2]
[339955495,1728210393841,54.85,8.23e-05,2]
[339955496,1728210393865,150.0,8.23e-05,2]
[339955497,1728210393890,150.0,8.23e-05,2]
[339955498,1728210393913,258.68,8.23e-05,2]
[339955499,1728210393937,150.0,8.23e-05,2]
[339955500,1728210393960,44.84,8.23e-05,2]
[339955501,1728210445220,-307.10615388,0.00010282,2]
[339955503,1728210470237,105.16,0.0001015,2]
[339955504,1728210470260,44.88,0.0001015,2]
[339955505,1728210491920,150.0,0.00010157,2]
[339955506,1728210491943,150.0,0.00010157,2]
[339955507,1728210491965,150.0,0.00010157,2]
[339955508,1728210491988,74.76,0.00010157,2]
[339955509,1728210513047,150.0,8.22e-05,2]
[339955510,1728210513069,150.0,8.22e-05,2]
[339955511,1728210513091,150.0,8.22e-05,2]
[339955512,1728210513113,134.62907352,8.22e-05,2]
[339955513,1728210517447,15.37092648,0.0001,2]
[339955514,1728210517468,150.0,0.0001,2]
[339955515,1728210517488,13.45907352,0.0001,2]
[339955517,1728210549321,250.6939049,0.00010175,2]
[339955518,1728210549342,59.0160951,0.00010175,2]
[339955519,1728210553016,90.9839049,0.00010175,2]
[339955520,1728210553037,150.0,0.00010175,2]
[339955521,1728210553059,292.32,0.00010175,2]
[339955522,1728210553079,127.7860951,0.00010175,2]
[339955541,1728210632231,-532.89384612,0.00010282,2]
[339955542,1728210632241,-748.30730149,0.00010494,2]
[339955547,1728210632326,-60.06269851,0.00010494,2]
[339955548,1728210632336,-308.39,0.0001089,2]
[339955549,1728210632345,-300.0,0.00010899,2]
[339955550,1728210632355,-1577.1293,0.000109,2]
[339955551,1728210632365,-4414.9101,0.000109,2]
[339955552,1728210632374,-194.11488155,0.000109,2]
[339955553,1728210632383,-6388.57745674,0.000109,2]
[339955554,1728210632392,-161.8461788,0.000109,2]
[339955555,1728210632402,-200.0,0.00010959,2]
[339955556,1728210632411,-166.92,0.00010959,2]
[339955557,1728210632421,-1500.0,0.00010959,2]
[339955558,1728210632430,-161.25,0.00010959,2]
[339955559,1728210632439,-1346.87,0.00010959,2]
[339955560,1728210632449,-500.0,0.00010973,2]
[339955561,1728210632458,-499.99,0.00010985,2]
[339955562,1728210632468,-5523.27,0.00010985,2]
[339955563,1728210632477,-1016.9621,0.00010986,2]
[339955564,1728210632487,-160.0,0.00010995,2]
[339955565,1728210632496,-250.0,0.00010995,2]
[339955566,1728210632506,-2919.524812,0.00010995,2]
[339955567,1728210632515,-173.07981899,0.00010999,2]
[339955568,1728210632524,-263.043,0.00010999,2]
[339955569,1728210632534,-234.464,0.00010999,2]
[339955570,1728210632544,-150.0,0.00010999,2]
[339955571,1728210632553,-150.0,0.00010999,2]
[339955572,1728210632563,-117040.41246259,0.00011,2]
[339955573,1728210632574,-1066.2677923,0.00011,2]
[339955574,1728210632584,-39105.12101427,0.00011,2]
[339955576,1728210632595,-1955.18529431,0.00011,2]
[339955578,1728210632606,-1100.75449853,0.00011,2]
[339955580,1728210632621,-546.70831491,0.00011,2]
[339955583,1728210632632,-17416.93220924,0.00011,2]
[339955619,1728210639040,-4844.40000002,0.00011,2]
[339955621,1728210639051,-32006.39999999,0.00011,2]
[339955624,1728210639074,-1700.51020281,0.00011,2]
[339955627,1728210639085,-1342.85010944,0.00011,2]
[339955635,1728210640466,-685.78827101,0.00011,2]
[339955636,1728210640478,-982.0,0.00011,2]
[339955637,1728210640557,-262.61055778,0.00011,2]
[339955644,1728210643288,-1255.06367634,0.00011,2]
[339955645,1728210643385,-280.36300001,0.00011,2]
[339955646,1728210643478,-656.55289212,0.00011,2]
[339955647,1728210643489,-350.184,0.00011,2]
[339955648,1728210643574,-427.18428536,0.00011,2]
[339955649,1728210643585,-537.88,0.00011,2]
[339955650,1728210643598,-935.05871083,0.00011,2]
[339955651,1728210643610,-9048.12466035,0.00011,2]
[339955657,1728210646295,-427.42518388,0.00011,2]
[339955658,1728210646460,-648.12938903,0.00011,2]
[339955663,1728211009613,150.0,8.285e-05,2]
[339955664,1728211009634,150.0,8.285e-05,2]
[339955665,1728211009655,150.0,8.285e-05,2]
[339955666,1728211009676,150.0,8.285e-05,2]
[339955667,1728211009698,150.0,8.285e-05,2]
[339955668,1728211009722,56.56,8.285e-05,2]
[339955669,1728211058671,150.0,0.00010181,2]
[339955670,1728211058692,150.0,0.00010181,2]
[339955671,1728211058714,150.0,0.00010181,2]
[339955672,1728211058735,150.0,0.00010181,2]
[339955673,1728211058762,31.38,0.00010181,2]
[339955674,1728211223142,205.46,0.00010123,2]
[339955675,1728211291927,160.0,0.00010099,2]
[339955676,1728211451422,150.0,0.00010121,2]
[339955677,1728211451446,150.0,0.00010121,2]
[339955678,1728211451470,150.0,0.00010121,2]
[339955679,1728211451494,150.0,0.00010121,2]
[339955680,1728211451518,150.0,0.00010121,2]
[339955681,1728211451541,275.03257842,0.00010121,2]
[339955682,1728211451567,468.67742158,0.00010121,2]
[339955683,1728211472823,150.0,0.00010141,2]
[339955684,1728211472844,100.0,0.00010141,2]
[339955685,1728211508708,250.0,0.00010139,2]
[339955686,1728211550168,805.81,8.241e-05,2]
[339955687,1728211616164,150.0,0.00010142,2]
[339955688,1728211616186,150.0,0.00010142,2]
[339955689,1728211616206,150.0,0.00010142,2]
[339955690,1728211616227,15.69,0.00010142,2]
[339955691,1728211671239,167.94,0.00010142,2]
[339955692,1728211757950,150.0,0.00010149,2]
[339955693,1728211757970,150.0,0.00010149,2]
[339955694,1728211757993,72.72,0.00010149,2]
[339955698,1728211803565,150.0,0.0001017,2]
[339955699,1728211803587,150.0,0.0001017,2]
[339955700,1728211803611,604.0,0.0001017,2]
[339955702,1728211831532,-805.81,0.00010505,2]
[339955703,1728211831547,-173.9643,0.000108,2]
[339955704,1728211831558,-150.0,0.00010877,2]
[339955705,1728211831567,-150.0,0.00010894,2]
[339955706,1728211831577,-336.3384,0.00010895,2]
[339955707,1728211831587,-173.42911961,0.00010895,2]
[339955708,1728211831599,-26999.672,0.00010895,2]
[339955709,1728211831749,-2048.245626,0.00010895,2]
[339955711,1728211837766,-6663.59565439,0.00010895,2]
[339955712,1728211837775,-317.6849,0.00010895,2]
[339955713,1728211837785,-3015.43117275,0.00010899,2]
[339955714,1728211837795,-9459.9193,0.000109,2]
[339955715,1728211837805,-1319.3136,0.000109,2]
[339955716,1728211837814,-2379.91505313,0.000109,2]
[339955718,1728211837823,-21993.12407643,0.000109,2]
[339955720,1728211837835,-499.32672357,0.000109,2]
[339955721,1728211837843,-4645.973274,0.000109,2]
[339955722,1728211837863,-546.63622183,0.000109,2]
[339955723,1728211837879,-27851.86920417,0.000109,2]
[339955724,1728211837888,-810.714042,0.000109,2]
[339955725,1728211837898,-22188.6891,0.000109,2]
[339955726,1728211837907,-436.0263,0.000109,2]
[339955727,1728211837917,-184.5925,0.000109,2]
[339955728,1728211837927,-290.3734,0.000109,2]
[339955729,1728211837938,-160.36941333,0.000109,2]
[339955730,1728211837947,-428.96,0.000109,2]
[339955731,1728211837956,-534.38,0.000109,2]
[339955732,1728211837965,-754.75,0.000109,2]
[339955733,1728211837974,-428.96,0.000109,2]
[339955734,1728211837984,-1098.0,0.000109,2]
[339955735,1728211837993,-310.79551709,0.000109,2]
[339955736,1728211838002,-7500.0,0.000109,2]
[339955737,1728211838012,-528.35096145,0.000109,2]
[339955738,1728211838021,-233.26284276,0.000109,2]
[339955739,1728211838030,-200.0,0.00010959,2]
[339955740,1728211838039,-499.99,0.00010959,2]
[339955741,1728211838050,-160.97,0.00010959,2]
[339955742,1728211838059,-1077.49,0.00010959,2]
[339955743,1728211838069,-162.93,0.00010959,2]
[339955744,1728211838078,-1500.0,0.00010959,2]
[339955745,1728211838088,-250.0,0.00010959,2]
[339955746,1728211838097,-500.0,0.00010973,2]
[339955747,1728211838106,-160.35862224,0.00010973,2]
[339955748,1728211838116,-500.0,0.00010973,2]
[339955749,1728211838125,-500.0,0.00010973,2]
[339955750,1728211838134,-190.84835503,0.00010985,2]
[339955751,1728211838143,-500.0,0.00010994,2]
[339955752,1728211838153,-500.0,0.00010994,2]
[339955753,1728211838162,-525.88526452,0.00010994,2]
[339955754,1728211838171,-13295.35310287,0.00010995,2]
[339955755,1728211838191,-101858.66014565,0.00010995,2]
[339955756,1728211838202,-1173.4868349,0.00010995,2]
[339955757,1728211838211,-325296.69284203,0.00010995,2]
[339955758,1728211839436,-1278.93957639,0.00010995,2]
[339955762,1728211839569,-267.50355253,0.00010995,2]
[339955763,1728211839700,-5818.34291614,0.00010995,2]
[339955764,1728211839739,-20106.592846,0.00010995,2]
[339955765,1728211839751,-415.1,0.00010995,2]
[339955810,1728211842557,-740.23858598,0.00010995,2]
[339955811,1728211842737,-130385.72202287,0.00010995,2]
[339955812,1728211842807,-715.17757292,0.00010995,2]
[339955814,1728211845857,-6410.64000001,0.00010995,2]
[339955815,1728211992580,306.06,0.00010217,2]
[339955816,1728211993163,250.0,0.00010217,2]
[339955817,1728212026520,150.0,0.00010206,2]
[339955818,1728212026542,79.88,0.00010206,2]
[339955819,1728212052582,766.49,8.267e-05,2]
[339955820,1728212110283,508.6,0.00010178,2]
[339955821,1728212269395,150.0,0.00010159,2]
[339955822,1728212269588,150.0,0.00010159,2]
[339955823,1728212269620,150.0,0.00010159,2]
[339955824,1728212269642,65.07,0.00010159,2]
[339955825,1728212534635,150.0,0.0001016,2]
[339955826,1728212534657,100.0,0.0001016,2]
[339955827,1728212580343,758.17,8.263e-05,2]
[339955828,1728212625499,150.0,0.00010168,2]
[339955829,1728212625519,104.3,0.00010168,2]
[339955830,1728212638784,1000.0,0.00010168,2]
[339955831,1728212649894,156.12,0.00010168,2]
[339955848,1728213031620,-758.17,0.00010527,2]
[339955849,1728213031630,-780.32173446,0.00010892,2]
[339955863,1728213031806,-786.29632256,0.00010892,2]
[339955923,1728213090397,725.28,8.266e-05,2]
[339955924,1728213129986,200.0,0.0001018,2]
[339955925,1728213140813,241.28,0.0001018,2]
[339955926,1728213148612,150.0,0.00010222,2]
[339955927,1728213148638,100.0,0.00010222,2]
[339955928,1728213260194,183.0,0.00010165,2]
[339955929,1728213311280,-725.28,0.00010529,2]
[339955930,1728213311309,-1365.7953,0.00010892,2]
[339955931,1728213311338,-300.0,0.00010894,2]
[339955932,1728213311367,-1000.0,0.00010895,2]
[339955933,1728213311395,-2500.0,0.00010895,2]
[339955934,1728213311424,-3944.6896,0.00010895,2]
[339955935,1728213311451,-5052.1754167,0.00010895,2]
[339955936,1728213311480,-150.0,0.00010898,2]
[339955937,1728213311508,-4136.89388082,0.00010899,2]
[339955938,1728213311537,-214.16688064,0.000109,2]
[339955939,1728213311564,-373.03930312,0.000109,2]
[339955940,1728213311592,-185.88180198,0.000109,2]
[339955941,1728213311619,-195.47382231,0.000109,2]
[339955942,1728213311647,-223.7897519,0.000109,2]
[339955943,1728213311676,-200.0,0.00010959,2]
[339955944,1728213311706,-161.62,0.00010959,2]
[339955945,1728213311735,-861.99,0.00010959,2]
[339955946,1728213311764,-166.92,0.00010959,2]
[339955947,1728213311794,-1500.0,0.00010959,2]
[339955948,1728213311822,-161.27,0.00010959,2]
[339955949,1728213311850,-250.0,0.00010959,2]
[339955950,1728213311877,-522.11418492,0.00010973,2]
[339955951,1728213311906,-499.99,0.00010988,2]
[339955952,1728213311933,-1464.1246402,0.00010988,2]
[339955953,1728213311962,-577.8307302,0.00010988,2]
[339955954,1728213311990,-15836.1005913,0.00010988,2]
[339955955,1728213312018,-189.899,0.00010991,2]
[339955956,1728213312045,-169.967,0.00010991,2]
[339955957,1728213312171,-1939.8594607,0.00010992,2]
[339955958,1728213312201,-1820.9257556,0.00010992,2]
[339955959,1728213312231,-1701.9920505,0.00010992,2]
[339955960,1728213312259,-1583.0583453,0.00010992,2]
[339955961,1728213312286,-765.5840069,0.00010992,2]
[339955962,1728213312317,-718.6456877,0.00010992,2]
[339955963,1728213312347,-671.7073685,0.00010992,2]
[339955964,1728213312377,-624.7690494,0.00010992,2]
[339955965,1728213312408,-5877.44637131,0.00010992,2]
[339955966,1728213377986,-1095.5878,0.00010895,2]
[339955967,1728213378013,-195.47382231,0.000109,2]
[339955968,1728213378041,-300.0,0.00010988,2]
[339955969,1728213378069,-450.775,0.00010989,2]
[339955970,1728213378095,-1297.0,0.00010989,2]
[339955971,1728213378124,-811.0,0.00010989,2]
[339955972,1728213378151,-626.0,0.00010989,2]
[339955973,1728213378181,-15348.22888649,0.00010992,2]
[339955974,1728213378209,-19878.2815912,0.00010992,2]
[339955975,1728213378236,-18530.8879245,0.00010992,2]
[339955976,1728213378266,-17183.4942579,0.00010992,2]
[339955977,1728213378294,-500.0,0.00010994,2]
[339955978,1728213378323,-335.27772706,0.00010994,2]
[339955979,1728213378353,-500.0,0.00010994,2]
[339955980,1728213378383,-500.0,0.00010994,2]
[339955981,1728213378411,-500.0,0.00010994,2]
[339955982,1728213378440,-500.0,0.00010994,2]
[339955983,1728213378470,-500.0,0.00010994,2]
[339955984,1728213378499,-257.43538269,0.00010994,2]
[339955985,1728213378527,-424.64275627,0.00010994,2]
[339955986,1728213378556,-297.24992939,0.00010994,2]
[339955987,1728213378586,-7787.66492219,0.00010995,2]
[339955988,1728213583633,150.0,8.637e-05,2]
[339955989,1728213583659,273.78702158,8.637e-05,2]
[339955990,1728213583684,228.96297842,8.637e-05,2]
[339955991,1728213757414,150.0,0.00010222,2]
[339955992,1728213757435,100.0,0.00010222,2]
[339955993,1728213843319,740.23,0.00010229,2]
[339955994,1728213997909,150.0,0.0001023,2]
[339955995,1728213997931,86.66,0.0001023,2]
[339955996,1728214028316,-307.10733363,0.00010272,2]
[339955997,1728214136507,150.0,8.357e-05,2]
[339955998,1728214136529,150.0,8.357e-05,2]
[339955999,1728214136551,150.0,8.357e-05,2]
[339956000,1728214136573,150.0,8.357e-05,2]
[339956001,1728214136596,36.65,8.357e-05,2]
[339956022,1728214231828,-241.28,0.00010249,2]
[339956023,1728214231837,-221.42,0.00010254,2]
[339956024,1728214231847,-532.89266637,0.00010272,2]
[339956025,1728214231856,-636.65,0.00010621,2]
[339956026,1728214231865,-1833.1554321,0.00010899,2]
[339956027,1728214231877,-1890.04906062,0.00010899,2]
[339956028,1728214231887,-397.95375408,0.000109,2]
[339956029,1728214231896,-195.47382231,0.000109,2]
[339956030,1728214231905,-300.0,0.00010958,2]
[339956031,1728214231914,-200.0,0.00010959,2]
[339956032,1728214231923,-1014.82,0.00010959,2]
[339956033,1728214231933,-163.86,0.00010959,2]
[339956034,1728214231942,-250.0,0.00010959,2]
[339956035,1728214231951,-556.09,0.00010959,2]
[339956036,1728214231961,-4754.6407511,0.00010988,2]
[339956037,1728214231970,-435.9151397,0.00010988,2]
[339956038,1728214231979,-164.58,0.00010992,2]
[339956039,1728214231988,-3166.7005958,0.00010992,2]
[339956040,1728214231998,-3563.6856347,0.00010992,2]
[339956041,1728214232007,-1319.78403611,0.00010992,2]
[339956042,1728214232120,-2640.88663739,0.00010992,2]
[339956043,1728214232130,-3658.85219727,0.00010992,2]
[339956050,1728214238095,-698.80351503,0.00010992,2]
[339956051,1728214238106,-287.4624271,0.00010992,2]
[339956052,1728214238117,-248.36928131,0.00010992,2]
[339956053,1728214238141,-76.20632389,0.00010992,2]
[339956054,1728214238153,-361.6887834,0.00010992,2]
[339956055,1728214238164,-229.95015682,0.00010992,2]
[339956117,1728214239856,-168.85180468,0.00010992,2]
[339956118,1728214239868,-488.14819532,0.00010995,2]
[339956119,1728214239993,-425.03180468,0.00010995,2]
[339956120,1728214240004,-60.14819532,0.00010995,2]
[339956127,1728214243125,-6500.00000026,0.00010995,2]
[339956128,1728214243139,-1272.32,0.00010995,2]
[339956129,1728214243436,-830.40439571,0.00010995,2]
[339956132,1728214245954,-815.72982737,0.00010995,2]
[339956282,1728214663223,618.11,8.241e-05,2]
[339956283,1728214785407,150.0,0.00010113,2]
[339956284,1728214785429,150.0,0.00010113,2]
[339956285,1728214785451,150.0,0.00010113,2]
[339956286,1728214785472,150.0,0.00010113,2]
[339956287,1728214785493,150.0,0.00010113,2]
[339956288,1728214785514,250.0,0.00010113,2]
[339956289,1728214804651,225.72,0.00010131,2]
[339956290,1728214813823,150.0,0.0001011,2]
[339956291,1728214813845,100.0,0.0001011,2]
[339956292,1728214836728,303.54,0.00010131,2]
[339956293,1728214853617,150.0,0.00010131,2]
[339956294,1728214853639,100.0,0.00010131,2]
[339956295,1728214864323,166.5,0.00010203,2]
[339956296,1728214992659,158.0,0.000201,120]
[339956297,1728215018933,150.0,0.00010182,2]
[339956298,1728215018956,3.86,0.00010182,2]
[339956299,1728215019529,-153.86,0.00010233,2]
[339956300,1728215208006,146.14,8.451e-05,2]
[339956301,1728215208031,150.0,8.451e-05,2]
[339956302,1728215208054,150.0,8.451e-05,2]
[339956303,1728215208078,148.57,8.451e-05,2]
[339956317,1728215389004,150.0,0.00010199,2]
[339956318,1728215389025,100.0,0.00010199,2]
[339956319,1728215396796,50.0,0.00010201,2]
[339956320,1728215396819,150.0,0.00010201,2]
[339956321,1728215396843,150.0,0.00010201,2]
[339956322,1728215396865,150.0,0.00010201,2]
[339956323,1728215396886,277.5274098,0.00010201,2]
[339956324,1728215396907,222.4725902,0.00010201,2]
[339956339,1728215432001,-225.72,0.0001026,2]
[339956340,1728215432011,-204.67,0.00010317,2]
[339956341,1728215432020,-275.04,0.00010395,2]
[339956342,1728215432030,-556.909934,0.000105,2]
[339956343,1728215432159,-1856.422066,0.000105,2]
[339956344,1728215432169,-594.71,0.00010715,2]
[339956345,1728215432180,-300.0,0.0001078,2]
[339956346,1728215432191,-366.3527147,0.00010781,2]